fUST/lending_fUST_20260623
["ID","MTS","AMOUNT","RATE_DAILY","PERIOD"]
[426143014,1782167435000,-155.09394855,0.00018638,2]
[426143016,1782167435000,-162.14319921,0.00018638,2]
[426143013,1782167435000,-178.28737972,0.00018638,2]
[426143012,1782167435000,-191.68752139,0.00018638,2]
[426143010,1782167435000,-416.7546398,0.00018456,2]
[426143011,1782167435000,-193.59439831,0.00018638,2]
[426143019,1782167435000,-157.44080531,0.00018644,2]
[426143039,1782167435000,-156.16552048,0.00019414,2]
[426143026,1782167435000,-387.18879662,0.00019414,2]
[426143037,1782167435000,-203.41982191,0.00019414,2]
[426143068,1782167435000,-661.62559864,0.000198,2]
[426143067,1782167435000,-226.86475275,0.00019421,2]
[426143069,1782167435000,-326.9151,0.000198,2]
[426143063,1782167435000,-234.2448336,0.00019421,2]
[426143065,1782167435000,-191.67594224,0.00019421,2]
[426143066,1782167435000,-185.15521469,0.00019421,2]
[426143064,1782167435000,-236.29124396,0.00019421,2]
[426143057,1782167435000,-188.4921566,0.00019421,2]
[426143033,1782167435000,-199.48950861,0.00019414,2]
[426143058,1782167435000,-429.58500732,0.00019421,2]
[426143060,1782167435000,-409.48450531,0.00019421,2]
[426143061,1782167435000,-233.64431913,0.00019421,2]
[426143062,1782167435000,-783.83838384,0.00019421,2]
[426143052,1782167435000,-389.42699385,0.00019415,2]
[426143059,1782167435000,-784.74694349,0.00019421,2]
[426143051,1782167435000,-199.01708323,0.00019415,2]
[426143054,1782167435000,-174.48611802,0.00019421,2]
[426143043,1782167435000,-381.15453261,0.00019414,2]
[426143045,1782167435000,-246.23076864,0.00019415,2]
[426143049,1782167435000,-217.03259926,0.00019415,2]
[426143044,1782167435000,-208.99725003,0.00019415,2]
[426143047,1782167435000,-324.28639842,0.00019415,2]
[426143042,1782167435000,-187.23433436,0.00019414,2]
[426143048,1782167435000,-200.5484261,0.00019415,2]
[426143050,1782167435000,-234.65907567,0.00019415,2]
[426143055,1782167435000,-314.88161062,0.00019421,2]
[426143056,1782167435000,-154.86925415,0.00019421,2]
[426143053,1782167435000,-345.09838494,0.00019415,2]
[426143070,1782167435000,-4255.77030381,0.000198,2]
[426143046,1782167435000,-210.27750408,0.00019415,2]
[426143083,1782167439000,-35094.1405313,0.000198,2]
[426143082,1782167439000,-300.0,0.00019016,2]
[426143084,1782167439000,-13185.67286058,0.000198,2]
[426143086,1782167439000,-4189.45215023,0.000198,2]
[426143088,1782167439000,-2761.43621564,0.000198,2]
[426143087,1782167439000,-1965.83825098,0.000198,2]
[426143089,1782167439000,-2536.51378436,0.000198,2]
[426143085,1782167439000,-28637.83788076,0.000198,2]
[426143113,1782167441000,-300.0,0.00019016,2]
[426143114,1782167441000,-1881.64791883,0.000198,2]
[426143118,1782167441000,-1032.17070523,0.000198,2]
[426143120,1782167441000,-1182.68223086,0.000198,2]
[426143134,1782167441000,-4323.00590868,0.000199,2]
[426143130,1782167441000,-355.985582,0.00019876,2]
[426143136,1782167441000,-1485.55645327,0.000199,2]
[426143122,1782167441000,-600.0,0.00019802,2]
[426143126,1782167441000,-500.0,0.0001983,2]
[426143128,1782167441000,-500.0,0.00019832,2]
[426143124,1782167441000,-198.605,0.00019823,2]
[426143132,1782167441000,-560.74,0.0001989,3]
[426143211,1782167444000,-813.5,0.000199,2]
[426143210,1782167444000,-468.942,0.000199,2]
[426143236,1782167446000,-62689.1874677,0.000199,2]
[426143237,1782167446000,-276.5150003,0.000199,2]
[426143238,1782167446000,-3728.37841619,0.000199,2]
[426143235,1782167446000,-500.0,0.00019829,2]
[426143262,1782167447000,-450.01624945,0.00019932,2]
[426143261,1782167447000,-312.33104095,0.00019932,2]
[426143259,1782167447000,-204.78321898,0.00019932,2]
[426143264,1782167447000,-571.73179891,0.00019932,2]
[426143258,1782167447000,-406.83964381,0.00019932,2]
[426143267,1782167447000,-417.99450006,0.00019933,2]
[426143269,1782167447000,-420.55500815,0.00019933,2]
[426143263,1782167447000,-374.46866871,0.00019932,2]
[426143265,1782167447000,-207.30845809,0.00019932,2]
[426143268,1782167447000,-492.46153728,0.00019933,2]
[426143270,1782167447000,-534.86213914,0.00019933,2]
[426143260,1782167447000,-394.76518764,0.00019932,2]
[426143273,1782167447000,-260.95006556,0.00019933,2]
[426143271,1782167447000,-176.89013802,0.00019933,2]
[426143266,1782167447000,-168.74798483,0.00019932,2]
[426143257,1782167447000,-170.18811367,0.00019932,2]
[426143246,1782167447000,-575.06256417,0.00019932,2]
[426143251,1782167447000,-398.97901722,0.00019932,2]
[426143279,1782167447000,-289.01487605,0.00019933,2]
[426143240,1782167447000,-74142.83999053,0.000199,2]
[426143241,1782167447000,-356.97,0.000199,2]
[426143239,1782167447000,-1200.43014939,0.000199,2]
[426143242,1782167447000,-580.78319493,0.00019932,2]
[426143244,1782167447000,-398.7919601,0.00019932,2]
[426143256,1782167447000,-465.28184565,0.00019932,2]
[426143255,1782167447000,-386.82699818,0.00019932,2]
[426143254,1782167447000,-360.58042798,0.00019932,2]
[426143245,1782167447000,-409.12930059,0.00019932,2]
[426143243,1782167447000,-269.11412308,0.00019932,2]
[426143247,1782167447000,-363.42755802,0.00019932,2]
[426143250,1782167447000,-378.27013571,0.00019932,2]
[426143248,1782167447000,-367.07179058,0.00019932,2]
[426143253,1782167447000,-241.31291349,0.00019932,2]
[426143272,1782167447000,-222.68269118,0.00019933,2]
[426143295,1782167447000,-614.22675797,0.00019939,2]
[426143275,1782167447000,-401.0968522,0.00019933,2]
[426143294,1782167447000,-627.79755479,0.00019939,2]
[426143297,1782167447000,-212.76351643,0.00019939,2]
[426143293,1782167447000,-189.42786317,0.00019939,2]
[426143292,1782167447000,-644.37751098,0.00019939,2]
[426143304,1782167447000,-383.35188447,0.00019939,2]
[426143298,1782167447000,-587.87878788,0.00019939,2]
[426143296,1782167447000,-467.28863825,0.00019939,2]
[426143300,1782167447000,-248.15088804,0.00019939,2]
[426143305,1782167447000,-207.78486201,0.00019939,2]
[426143308,1782167447000,-311270.07877291,0.0002,2]
[426143309,1782167447000,-46355.38751532,0.0002,2]
[426143306,1782167447000,-370.31042938,0.00019939,2]
[426143307,1782167447000,-453.7295055,0.00019939,2]
[426143278,1782167447000,-626.91969338,0.00019933,2]
[426143299,1782167447000,-468.4896672,0.00019939,2]
[426143291,1782167447000,-179.29441835,0.00019939,2]
[426143303,1782167447000,-472.58248792,0.00019939,2]
[426143302,1782167447000,-195.68696329,0.00019939,2]
[426143301,1782167447000,-196.16340997,0.00019939,2]
[426143280,1782167447000,-469.31815133,0.00019933,2]
[426143274,1782167447000,-486.42959763,0.00019933,2]
[426143277,1782167447000,-156.76760877,0.00019933,2]
[426143283,1782167447000,-517.64757741,0.00019933,2]
[426143281,1782167447000,-398.03416645,0.00019933,2]
[426143282,1782167447000,-584.14049078,0.00019933,2]
[426143276,1782167447000,-434.06519851,0.00019933,2]
[426143287,1782167447000,-309.73850829,0.00019939,2]
[426143286,1782167447000,-472.32241592,0.00019939,2]
[426143285,1782167447000,-348.97223605,0.00019939,2]
[426143290,1782167447000,-196.25184183,0.00019939,2]
[426143288,1782167447000,-168.41152239,0.00019939,2]
[426143284,1782167447000,-245.33063657,0.00019939,2]
[426143289,1782167447000,-376.9843132,0.00019939,2]
[426143311,1782167527000,-316.79689611,0.00018458,2]
[426143368,1782168632000,-176.99500406,0.00018644,2]
[426143377,1782168632000,-4810.1669561,0.00019211,2]
[426143370,1782168632000,-211.03898254,0.00018644,2]
[426143391,1782168632000,-500.0,0.0001932,2]
[426143382,1782168632000,-158.884,0.00019315,2]
[426143379,1782168632000,-3728.37841619,0.00019221,2]
[426143372,1782168632000,-187.01634242,0.00018644,2]
[426143384,1782168632000,-2332.5181427,0.00019315,2]
[426143373,1782168632000,-171.86188573,0.00018644,2]
[426143359,1782168632000,-171.0,0.00017269,2]
[426143366,1782168632000,-176.34530865,0.00018644,2]
[426143387,1782168632000,-500.0,0.0001932,2]
[426143357,1782168632000,-1468.44181087,0.00015874,2]
[426143363,1782168632000,-196.0257149,0.00018644,2]
[426143365,1782168632000,-189.74723113,0.00018644,2]
[426143361,1782168632000,-267.333487,0.00017634,2]
[426143356,1782168632000,-5000.0,0.00015715,2]
[426143354,1782168632000,-3511.20099006,0.00015558,2]
[426143389,1782168632000,-413.76479163,0.0001932,2]
[426143375,1782168632000,-886.44316043,0.00018644,2]
[426143380,1782168632000,-718.76,0.00019311,3]
[426143399,1782168632000,-500.0,0.0001932,2]
[426143392,1782168632000,-500.0,0.0001932,2]
[426143396,1782168632000,-500.0,0.0001932,2]
[426143417,1782168632000,-11878.12792693,0.00019321,2]
[426143434,1782168632000,-9079.1697719,0.00019321,2]
[426143428,1782168632000,-500.0,0.0001922,2]
[426143425,1782168632000,-1500.09975333,0.00019321,2]
[426143432,1782168632000,-500.0,0.0001922,2]
[426143430,1782168632000,-500.0,0.0001922,2]
[426143420,1782168632000,-500.0,0.0001922,2]
[426143412,1782168632000,-500.0,0.0001932,2]
[426143422,1782168632000,-500.0,0.0001922,2]
[426143398,1782168632000,-500.0,0.0001932,2]
[426143408,1782168632000,-500.0,0.0001932,2]
[426143416,1782168632000,-650.0,0.0001932,2]
[426143394,1782168632000,-391.8641645,0.0001932,2]
[426143406,1782168632000,-500.0,0.0001932,2]
[426143410,1782168632000,-500.0,0.0001932,2]
[426143401,1782168632000,-500.0,0.0001932,2]
[426143414,1782168632000,-500.0,0.0001932,2]
[426143405,1782168632000,-500.0,0.0001932,2]
[426143403,1782168632000,-500.0,0.0001932,2]
[426143467,1782168638000,-500.0,0.0001922,2]
[426143470,1782168638000,-500.0,0.0001922,2]
[426143472,1782168638000,-500.0,0.0001922,2]
[426143468,1782168638000,-500.0,0.0001922,2]
[426143473,1782168638000,-500.0,0.0001922,2]
[426143479,1782168638000,-500.0,0.0001922,2]
[426143474,1782168638000,-500.0,0.0001922,2]
[426143483,1782168638000,-500.0,0.0001922,2]
[426143477,1782168638000,-500.0,0.0001922,2]
[426143466,1782168638000,-500.0,0.0001922,2]
[426143471,1782168638000,-500.0,0.0001922,2]
[426143469,1782168638000,-500.0,0.0001922,2]
[426143458,1782168638000,-500.0,0.0001922,2]
[426143475,1782168638000,-500.0,0.0001922,2]
[426143465,1782168638000,-500.0,0.0001922,2]
[426143460,1782168638000,-354.38000428,0.0001922,2]
[426143461,1782168638000,-500.0,0.0001922,2]
[426143463,1782168638000,-500.0,0.0001922,2]
[426143462,1782168638000,-500.0,0.0001922,2]
[426143455,1782168638000,-500.0,0.0001922,2]
[426143457,1782168638000,-500.0,0.0001922,2]
[426143459,1782168638000,-500.0,0.0001922,2]
[426143456,1782168638000,-500.0,0.0001922,2]
[426143488,1782168638000,-500.0,0.0001922,2]
[426143464,1782168638000,-500.0,0.0001922,2]
[426143480,1782168638000,-518.87354551,0.0001922,2]
[426143486,1782168638000,-500.0,0.0001922,2]
[426143476,1782168638000,-500.0,0.0001922,2]
[426143504,1782168638000,-500.0,0.0001922,2]
[426143506,1782168638000,-41189.48418494,0.00019321,2]
[426143507,1782168638000,-238475.84025508,0.00019321,2]
[426143505,1782168638000,-113138.79618338,0.00019321,2]
[426143496,1782168638000,-500.0,0.0001922,2]
[426143491,1782168638000,-500.0,0.0001922,2]
[426143495,1782168638000,-500.0,0.0001922,2]
[426143489,1782168638000,-500.0,0.0001922,2]
[426143500,1782168638000,-500.0,0.0001922,2]
[426143501,1782168638000,-500.0,0.0001922,2]
[426143493,1782168638000,-500.0,0.0001922,2]
[426143498,1782168638000,-500.0,0.0001922,2]
[426143482,1782168638000,-500.0,0.0001922,2]
[426143490,1782168638000,-500.0,0.0001922,2]
[426143487,1782168638000,-500.0,0.0001922,2]
[426143478,1782168638000,-500.0,0.0001922,2]
[426143484,1782168638000,-500.0,0.0001922,2]
[426143485,1782168638000,-500.0,0.0001922,2]
[426143481,1782168638000,-500.0,0.0001922,2]
[426143502,1782168638000,-500.0,0.0001922,2]
[426143499,1782168638000,-500.0,0.0001922,2]
[426143497,1782168638000,-500.0,0.0001922,2]
[426143494,1782168638000,-500.0,0.0001922,2]
[426143492,1782168638000,-512.97105472,0.0001922,2]
[426143503,1782168638000,-500.0,0.0001922,2]
[426143512,1782168640000,-448.00297303,0.00019321,2]
[426143545,1782168648000,-151.545491,0.00019421,2]
[426143550,1782168648000,-1170.02992922,0.00019647,2]
[426143551,1782168648000,-377.14887187,0.00019647,2]
[426143552,1782168648000,-500.0,0.00019687,2]
[426143554,1782168648000,-600.0,0.00019807,2]
[426143558,1782168648000,-257.5259458,0.00019939,2]
[426143553,1782168648000,-259.21853875,0.000198,2]
[426143555,1782168648000,-183.47192559,0.00019939,2]
[426143556,1782168648000,-255.19941294,0.00019939,2]
[426143557,1782168648000,-252.98314042,0.00019939,2]
[426143561,1782168648000,-244.90084778,0.00019939,2]
[426143560,1782168648000,-569.24169338,0.00019939,2]
[426143562,1782168648000,-529.03592596,0.00019939,2]
[426143563,1782168648000,-208.99725003,0.00019939,2]
[426143564,1782168648000,-236.35087216,0.00019939,2]
[426143567,1782168648000,-337.19830312,0.00019939,2]
[426143569,1782168648000,-266.89640674,0.00019939,2]
[426143559,1782168648000,-588.0771447,0.00019939,2]
[426143547,1782168648000,-174.21481322,0.00019421,2]
[426143548,1782168648000,-664.83237032,0.00019421,2]
[426143541,1782168648000,-422.07796507,0.00019421,2]
[426143526,1782168648000,-9929.10795564,0.00019321,2]
[426143527,1782168648000,-38000.45845078,0.00019321,2]
[426143531,1782168648000,-502.40695595,0.00019413,2]
[426143530,1782168648000,-8465.08803825,0.00019321,2]
[426143537,1782168648000,-187.89499584,0.00019421,2]
[426143532,1782168648000,-500.0,0.00019413,2]
[426143528,1782168648000,-3586.37892209,0.00019321,2]
[426143529,1782168648000,-2616.55796285,0.00019321,2]
[426143546,1782168648000,-188.92118598,0.00019421,2]
[426143535,1782168648000,-379.49446225,0.00019421,2]
[426143536,1782168648000,-352.69061731,0.00019421,2]
[426143538,1782168648000,-168.59915156,0.00019421,2]
[426143539,1782168648000,-156.81302954,0.00019421,2]
[426143543,1782168648000,-188.59145846,0.00019421,2]
[426143565,1782168648000,-375.78999168,0.00019939,2]
[426143542,1782168648000,-374.03268484,0.00019421,2]
[426143549,1782168648000,-658.80063582,0.00019647,2]
[426143544,1782168648000,-343.72377146,0.00019421,2]
[426143534,1782168648000,-392.0514298,0.00019421,2]
[426143540,1782168648000,-353.99000812,0.00019421,2]
[426143566,1782168648000,-213.3875638,0.00019939,2]
[426143571,1782168648000,-217.93207065,0.00019939,2]
[426143590,1782168648000,-200.35231131,0.00019939,2]
[426143592,1782168648000,-303.090982,0.00019939,2]
[426143593,1782168648000,-168.38590945,0.00019939,2]
[426143568,1782168648000,-239.46009679,0.00019939,2]
[426143596,1782168648000,-348.42962645,0.00019939,2]
[426143597,1782168648000,-443.22158021,0.00019939,2]
[426143595,1782168648000,-247.34541874,0.00019939,2]
[426143603,1782168648000,-290.92956689,0.0001994,2]
[426143601,1782168648000,-233.64431913,0.0001994,2]
[426143607,1782168648000,-242.96657716,0.0001994,2]
[426143606,1782168648000,-250.08045216,0.0001994,2]
[426143608,1782168648000,-226.86475275,0.0001994,2]
[426143610,1782168648000,-29582.77002861,0.0002,2]
[426143609,1782168648000,-500.0,0.00019961,2]
[426143613,1782168648000,-31941.50000004,0.0002,2]
[426143604,1782168648000,-222.22787432,0.0001994,2]
[426143612,1782168648000,-799.65154018,0.0002,2]
[426143611,1782168648000,-639.769,0.0002,2]
[426143605,1782168648000,-290.56303042,0.0001994,2]
[426143600,1782168648000,-154.86925414,0.0001994,2]
[426143594,1782168648000,-377.84237197,0.00019939,2]
[426143599,1782168648000,-219.70223964,0.0001994,2]
[426143570,1782168648000,-199.48950861,0.00019939,2]
[426143574,1782168648000,-273.07792944,0.00019939,2]
[426143572,1782168648000,-530.98501218,0.00019939,2]
[426143602,1782168648000,-162.99619453,0.0001994,2]
[426143575,1782168648000,-633.11694761,0.00019939,2]
[426143577,1782168648000,-284.58499804,0.00019939,2]
[426143578,1782168648000,-377.18291692,0.00019939,2]
[426143579,1782168648000,-192.67658403,0.00019939,2]
[426143573,1782168648000,-233.32812145,0.00019939,2]
[426143582,1782168648000,-246.76536208,0.00019939,2]
[426143580,1782168648000,-260.31257874,0.00019939,2]
[426143598,1782168648000,-263.80268693,0.00019939,2]
[426143588,1782168648000,-174.48611802,0.00019939,2]
[426143586,1782168648000,-515.58565719,0.00019939,2]
[426143576,1782168648000,-561.04902726,0.00019939,2]
[426143583,1782168648000,-238.45061552,0.00019939,2]
[426143584,1782168648000,-313.62605908,0.00019939,2]
[426143581,1782168648000,-234.65907567,0.00019939,2]
[426143585,1782168648000,-251.59711638,0.00019939,2]
[426143615,1782168980000,306.05473331,2.01e-05,2]
[426143617,1782169055000,7260.55744871,7.6e-05,2]
[426143621,1782169429000,-306.37080904,9.801e-05,2]
[426143620,1782169429000,-187.45130039,9.801e-05,2]
[426143623,1782169431000,-187.44541979,9.801e-05,2]
[426143622,1782169431000,-470.98870758,9.801e-05,2]
[426143624,1782169433000,-152.0,9.801e-05,2]
[426143625,1782169434000,-804.63180249,9.801e-05,2]
[426143626,1782169440000,-357.50917569,9.801e-05,2]
[426143627,1782169441000,-306.24138195,9.801e-05,2]
[426143628,1782169442000,-391.16871995,9.801e-05,2]
[426143629,1782169448000,-358.4433682,9.703e-05,2]
[426143630,1782169623000,-579.62967841,9.606e-05,2]
[426143631,1782169625000,-564.97383072,9.606e-05,2]
[426143633,1782169823000,-742.52461939,9.228e-05,2]
[426143677,1782169832000,-1799.7835175,9.321e-05,2]
[426143675,1782169832000,-402.07888974,9.228e-05,2]
[426143676,1782169832000,-206.65681338,9.321e-05,2]
[426143674,1782169832000,-996.69344218,9.136e-05,2]
[426143794,1782169838000,-500.0,0.00011999,2]
[426143802,1782169838000,-500.0,0.00011999,2]
[426143796,1782169838000,-500.0,0.00011999,2]
[426143800,1782169838000,-500.0,0.00011999,2]
[426143798,1782169838000,-500.0,0.00011999,2]
[426143806,1782169838000,-179.30491515,0.00011999,2]
[426143804,1782169838000,-500.0,0.00011999,2]
[426143811,1782169838000,-500.0,0.00011999,2]
[426143813,1782169838000,-500.0,0.00011999,2]
[426143790,1782169838000,-601.88735455,0.00011999,2]
[426143821,1782169838000,-37593.68456632,0.00012,2]
[426143815,1782169838000,-500.0,0.00011999,2]
[426143817,1782169838000,-500.0,0.00011999,2]
[426143810,1782169838000,-500.0,0.00011999,2]
[426143823,1782169838000,-5018.0,0.00012,2]
[426143819,1782169838000,-500.0,0.00011999,2]
[426143808,1782169838000,-500.0,0.00011999,2]
[426143789,1782169838000,-500.0,0.00011999,2]
[426143782,1782169838000,-500.0,0.00011999,2]
[426143784,1782169838000,-500.0,0.00011999,2]
[426143750,1782169838000,-3176.835508,0.0001,2]
[426143748,1782169838000,-2993.55966912,9.321e-05,2]
[426143753,1782169838000,-500.0,0.00010375,2]
[426143754,1782169838000,-151.0,0.000115,2]
[426143756,1782169838000,-500.0,0.00011999,2]
[426143758,1782169838000,-500.0,0.00011999,2]
[426143772,1782169838000,-500.0,0.00011999,2]
[426143774,1782169838000,-500.0,0.00011999,2]
[426143760,1782169838000,-500.0,0.00011999,2]
[426143778,1782169838000,-500.0,0.00011999,2]
[426143776,1782169838000,-500.0,0.00011999,2]
[426143768,1782169838000,-289.63535414,0.00011999,2]
[426143766,1782169838000,-169.15343494,0.00011999,2]
[426143764,1782169838000,-500.0,0.00011999,2]
[426143770,1782169838000,-500.0,0.00011999,2]
[426143780,1782169838000,-500.0,0.00011999,2]
[426143827,1782169838000,-50024.21982871,0.00012,2]
[426143786,1782169838000,-500.0,0.00011999,2]
[426143829,1782169838000,-4208.89608657,0.00013599,2]
[426143792,1782169838000,-500.0,0.00011999,2]
[426143847,1782169838000,-3351.9498729,0.00017,2]
[426143873,1782169838000,-1012.5937703,0.00019,2]
[426143877,1782169838000,-439.82882757,0.00019422,2]
[426143878,1782169838000,-339.38115297,0.00019422,2]
[426143879,1782169838000,-162.53635638,0.00019422,2]
[426143881,1782169838000,-194.11222343,0.00019422,2]
[426143884,1782169838000,-379.65006344,0.00019422,2]
[426143885,1782169838000,-300.15148082,0.00019422,2]
[426143882,1782169838000,-398.97770144,0.00019422,2]
[426143880,1782169838000,-208.70176588,0.00019422,2]
[426143883,1782169838000,-162.69345214,0.00019422,2]
[426143889,1782169838000,-150.30540939,0.00019422,2]
[426143888,1782169838000,-155.26583446,0.00019422,2]
[426143887,1782169838000,-156.82987049,0.00019422,2]
[426143891,1782169838000,-410.12733312,0.00019422,2]
[426143845,1782169838000,-500.0,0.00016986,2]
[426143895,1782169838000,-187.89499584,0.00019423,2]
[426143897,1782169838000,-171.07025658,0.00019423,2]
[426143869,1782169838000,-166.29,0.00018882,2]
[426143865,1782169838000,-205.06366656,0.00018645,2]
[426143893,1782169838000,-368.63964702,0.00019422,2]
[426143876,1782169838000,-348.99,0.00019178,2]
[426143875,1782169838000,-412.1,0.00019178,2]
[426143851,1782169838000,-558.09301169,0.0001726,2]
[426143843,1782169838000,-500.0,0.00016712,2]
[426143833,1782169838000,-318.495,0.00013699,2]
[426143831,1782169838000,-238.941793,0.00013699,2]
[426143835,1782169838000,-359.25731995,0.00015,2]
[426143841,1782169838000,-500.0,0.00016438,2]
[426143839,1782169838000,-502.40695595,0.00016438,2]
[426143849,1782169838000,-4208.89608653,0.00017185,2]
[426143853,1782169838000,-15099.44838071,0.00018,2]
[426143855,1782169838000,-219.91441379,0.00018645,2]
[426143867,1782169838000,-184.31982351,0.00018645,2]
[426143861,1782169838000,-189.82503172,0.00018645,2]
[426143863,1782169838000,-150.07574041,0.00018645,2]
[426143859,1782169838000,-199.48885072,0.00018645,2]
[426143857,1782169838000,-169.69057648,0.00018645,2]
[426143837,1782169838000,-151.29230756,0.00016438,2]
[426143871,1782169838000,-206.96262605,0.00018942,2]
[426143942,1782169839000,-388.22444687,0.0001994,2]
[426143937,1782169839000,-293.98967437,0.0001994,2]
[426143940,1782169839000,-417.40353177,0.0001994,2]
[426143944,1782169839000,-291.6560182,0.0001994,2]
[426143946,1782169839000,-199.48950861,0.0001994,2]
[426143954,1782169839000,-273.31067119,0.0001994,2]
[426143948,1782169839000,-273.0530101,0.0001994,2]
[426143958,1782169839000,-255.19941294,0.0001994,2]
[426143950,1782169839000,-598.46655217,0.0001994,2]
[426143961,1782169839000,-569.47509517,0.0001994,2]
[426143963,1782169839000,-450.22722123,0.0001994,2]
[426143965,1782169839000,-290.93215185,0.0001994,2]
[426143935,1782169839000,-325.07271276,0.0001994,2]
[426143952,1782169839000,-325.38690429,0.0001994,2]
[426143929,1782169839000,-659.74324136,0.0001994,2]
[426143902,1782169839000,-173.05922652,0.00019424,2]
[426143932,1782169839000,-509.07172945,0.0001994,2]
[426143906,1782169839000,-664.83237032,0.00019424,2]
[426143912,1782169839000,-232.31038618,0.00019424,2]
[426143910,1782169839000,-211.28326445,0.00019424,2]
[426143914,1782169839000,-159.76420283,0.00019424,2]
[426143908,1782169839000,-233.85755363,0.00019424,2]
[426143916,1782169839000,-150.27681835,0.00019424,2]
[426143933,1782169839000,-288.73210511,0.0001994,2]
[426143904,1782169839000,-152.47811157,0.00019424,2]
[426143920,1782169839000,-600.0,0.00019604,2]
[426143917,1782169839000,-152.29566404,0.00019424,2]
[426143924,1782169839000,-186.0,0.00019671,2]
[426143926,1782169839000,-150.66,0.00019821,2]
[426143967,1782169839000,-313.65974098,0.0001994,2]
[426143922,1782169839000,-445.0,0.00019671,2]
[426143900,1782169839000,-177.13258701,0.00019423,2]
[426143977,1782169839000,-233.64431913,0.0001994,2]
[426143928,1782169839000,-849.49999991,0.000199,2]
[426143984,1782169839000,-552.95947053,0.0001994,2]
[426144010,1782169839000,-467.71510725,0.00019942,2]
[426144017,1782169839000,-464.62077236,0.00019942,2]
[426144016,1782169839000,-251.59711638,0.00019942,2]
[426144019,1782169839000,-319.52840566,0.00019942,2]
[426144021,1782169839000,-234.65907567,0.00019942,2]
[426144028,1782169839000,-290.56303042,0.00019942,2]
[426144006,1782169839000,-304.95622313,0.00019942,2]
[426144024,1782169839000,-300.55363669,0.00019942,2]
[426144037,1782169839000,-59227.25475431,0.0002,2]
[426144039,1782169839000,-184971.37484813,0.0002,2]
[426144034,1782169839000,-226.86475275,0.00019942,2]
[426144032,1782169839000,-299.55747753,0.00019942,2]
[426144036,1782169839000,-141578.79327661,0.0002,2]
[426144030,1782169839000,-304.59132808,0.00019942,2]
[426144026,1782169839000,-276.45257321,0.00019942,2]
[426143980,1782169839000,-154.86925414,0.0001994,2]
[426144014,1782169839000,-192.67658403,0.00019942,2]
[426144012,1782169839000,-422.56652889,0.00019942,2]
[426143982,1782169839000,-174.48611802,0.0001994,2]
[426143986,1782169839000,-228.04183273,0.00019941,2]
[426143969,1782169839000,-310.53166892,0.0001994,2]
[426143988,1782169839000,-240.52701318,0.00019941,2]
[426143975,1782169839000,-263.80268693,0.0001994,2]
[426143973,1782169839000,-615.19099968,0.0001994,2]
[426144000,1782169839000,-253.01128162,0.00019942,2]
[426143971,1782169839000,-300.61081879,0.0001994,2]
[426143990,1782169839000,-266.79480424,0.00019941,2]
[426143993,1782169839000,-208.99725003,0.00019941,2]
[426143998,1782169839000,-354.26517402,0.00019941,2]
[426143996,1782169839000,-342.14051315,0.00019941,2]
[426144004,1782169839000,-346.11845305,0.00019942,2]
[426144002,1782169839000,-221.9590905,0.00019942,2]
[426144008,1782169839000,-443.22158021,0.00019942,2]
[426143992,1782169839000,-375.78999168,0.00019941,2]
[426144175,1782169840000,-261.03972,9.228e-05,2]
[426144212,1782169843000,-973.27240735,9.228e-05,2]
[426144213,1782169843000,-3014.14749848,9.228e-05,2]
[426144214,1782169843000,-27.42075729,0.0002,2]
[426144215,1782169843000,-5198.12932627,0.0002,2]
[426144264,1782169846000,-378.81241793,0.0002,2]
[426144265,1782169846000,-43058.87422593,0.0002,2]
[426144266,1782170057000,-464.63348885,8.861e-05,2]
[426144267,1782170058000,-764.15596448,8.861e-05,2]
[426144269,1782170059000,-306.24,8.861e-05,2]
[426144268,1782170059000,-393.83926,8.861e-05,2]
[426144270,1782170061000,-539.73679863,8.861e-05,2]
[426144271,1782170062000,-306.29279671,8.861e-05,2]
[426144272,1782170063000,-254.7799585,8.861e-05,2]
[426144273,1782170063000,-580.90124129,8.861e-05,2]